fUSD/lending_fUSD_20240427
["ID","MTS","AMOUNT","RATE_DAILY","PERIOD"]
[323758948,1714251040624,-610.0,0.00012147,2]
[323758949,1714251040632,-308.0,0.00012147,2]
[323758950,1714251040642,-807.0,0.00012147,2]
[323758951,1714251040651,-1860.0,0.00012147,2]
[323758952,1714251040660,-437.0,0.00012147,2]
[323758953,1714251040669,-1741.959,0.00012147,2]
[323758954,1714251040678,-586.364,0.00012147,2]
[323758955,1714251040687,-600.0,0.000122,4]
[323758956,1714251040696,-1300.0,0.000123,4]
[323758957,1714251040705,-1039.0,0.00012328,2]
[323758958,1714251040714,-975.87973664,0.00012348,2]
[323758959,1714251040724,-1000.0,0.000124,3]
[323758960,1714251040734,-785.0,0.000124,2]
[323758961,1714251040744,-1000.0,0.000124,2]
[323758962,1714251040754,-1000.0,0.000124,2]
[323758963,1714251040764,-2000.0,0.000124,4]
[323758964,1714251040773,-1628.0,0.000124,2]
[323758965,1714251040784,-1115.01113827,0.00012412,2]
[323758967,1714251040793,-1107.87378596,0.00012412,2]
[323758968,1714251040803,-1000.0,0.000125,2]
[323758969,1714251040811,-1000.0,0.000125,2]
[323758970,1714251040824,-1000.0,0.000125,4]
[323758971,1714251040833,-1007.0,0.000125,3]
[323758972,1714251040844,-1000.0,0.000125,3]
[323758973,1714251040853,-500.0,0.000125,2]
[323758974,1714251040862,-2700.0,0.000125,4]
[323758975,1714251040871,-374.93140909,0.000125,2]
[323758976,1714251040880,-4203.9469,0.000126,2]
[323758977,1714251040896,-500.0,0.000126,2]
[323758978,1714251040905,-3400.0,0.000126,4]
[323758979,1714251040915,-192.19193026,0.000126,2]
[323758980,1714251040924,-90.52238156,0.00012665,2]
[323758981,1714251040933,-298.84757904,0.00012665,2]
[323758982,1714251040942,-1472.230329,0.00012665,2]
[323758983,1714251040952,-14392.62,0.0001268,2]
[323758984,1714251040961,-1000.0,0.000127,2]
[323758985,1714251040971,-1000.0,0.000127,2]
[323758986,1714251040981,-500.0,0.000127,2]
[323758987,1714251040991,-600.0,0.000127,4]
[323758988,1714251041000,-192.19193026,0.0001275,2]
[323758989,1714251041009,-500.0,0.00012799,2]
[323758990,1714251041018,-1000.0,0.000128,2]
[323758991,1714251041027,-1000.0,0.000128,2]
[323758992,1714251041038,-12616.9131787,0.000128,2]
[323758993,1714251041048,-565.8337,0.000128,2]
[323758994,1714251041057,-2154.2782,0.000128,2]
[323758995,1714251041070,-192.8895,0.000128,2]
[323758996,1714251041079,-500.0,0.000128,2]
[323758997,1714251041088,-600.0,0.000128,4]
[323758998,1714251041097,-1000.0,0.00012895,2]
[323758999,1714251041106,-500.0,0.00012895,2]
[323759000,1714251041117,-1000.0,0.00012896,2]
[323759001,1714251041127,-500.0,0.00012896,2]
[323759002,1714251041137,-1000.0,0.000129,3]
[323759003,1714251041147,-1000.0,0.000129,2]
[323759004,1714251041156,-1000.0,0.000129,2]
[323759005,1714251041166,-10000.0,0.000129,2]
[323759006,1714251041175,-2554.83848934,0.000129,2]
[323759007,1714251041187,-354.72788086,0.000129,2]
[323759008,1714251041198,-348.49967892,0.000129,2]
[323759009,1714251041210,-290.82,0.000129,2]
[323759010,1714251041221,-2952.98814121,0.000129,2]
[323759011,1714251041230,-171.25018801,0.000129,2]
[323759012,1714251041239,-46.0822761,0.000129,2]
[323759013,1714251041251,-453.9177239,0.000129,2]
[323759014,1714251041260,-600.0,0.000129,4]
[323759015,1714251041269,-500.0,0.000129,2]
[323759016,1714251041278,-192.19193026,0.000129,2]
[323759017,1714251041287,-1132.46984543,0.000129,2]
[323759018,1714251041296,-523.2350827,0.0001298,2]
[323759019,1714251041307,-250.5,0.0001298,2]
[323759020,1714251041320,-290.77689149,0.0001298,2]
[323759021,1714251041331,-380.26693468,0.0001298,2]
[323759022,1714251041342,-3151.59999991,0.0001298,2]
[323759023,1714251041353,-509.999985,0.0001298,2]
[323759024,1714251041364,-8102.55812948,0.0001298,2]
[323759025,1714251041379,-260.59,0.0001298,2]
[323759026,1714251041390,-49925.61766068,0.0001298,2]
[323759027,1714251041401,-8556.04404927,0.0001298,2]
[323759028,1714251041413,-4211.70784259,0.0001298,2]
[323759029,1714251041423,-2611.22327998,0.0001298,2]
[323759030,1714251041443,-1263.6290311,0.0001298,2]
[323759031,1714251041456,-3719.66158565,0.0001298,2]
[323759032,1714251041467,-4756.91017725,0.0001298,2]
[323759033,1714251041478,-16760.01633474,0.0001298,2]
[323759043,1714251043170,-1966.65077062,0.0001298,2]
[323759044,1714251043182,-1468.79524653,0.0001298,2]
[323759045,1714251043230,-489.76182989,0.0001298,2]
[323759046,1714251043242,-336.95839996,0.0001298,2]
[323759047,1714251043253,-16305.56878325,0.0001298,2]
[323759048,1714251043287,-935.21484251,0.0001298,2]
[323759049,1714251043298,-1401.6000012,0.0001298,2]
[323759050,1714251043310,-1648.32771121,0.0001298,2]
[323759051,1714251043322,-259.81768672,0.0001298,2]
[323759052,1714251043333,-9070.45547299,0.0001298,2]
[323759053,1714251043342,-4584.3685979,0.00012986,2]
[323759054,1714251043351,-233.68053952,0.00012987,2]
[323759055,1714251043360,-182.0,0.0001299,2]
[323759056,1714251043370,-233.68053952,0.0001299,2]
[323759057,1714251043379,-233.68053952,0.0001299,2]
[323759058,1714251043388,-157.042805,0.00012995,3]
[323759059,1714251043397,-157.042805,0.00012995,3]
[323759060,1714251043406,-157.042805,0.00012995,3]
[323759061,1714251043415,-157.042805,0.00012995,3]
[323759062,1714251043424,-157.042805,0.00012995,3]
[323759063,1714251043433,-157.042805,0.00012996,3]
[323759064,1714251043442,-157.042805,0.00012996,3]
[323759065,1714251043451,-157.042805,0.00012996,3]
[323759066,1714251043460,-157.042805,0.00012996,3]
[323759067,1714251043468,-157.042805,0.00012996,3]
[323759068,1714251043477,-157.042805,0.00012996,3]
[323759069,1714251043486,-157.042805,0.00012996,3]
[323759070,1714251043495,-157.042805,0.00012996,3]
[323759071,1714251043504,-157.042805,0.00012996,3]
[323759072,1714251043513,-157.042805,0.00012997,3]
[323759073,1714251043522,-157.042805,0.00012997,3]
[323759074,1714251043531,-157.042805,0.00012997,3]
[323759075,1714251043540,-157.042805,0.00012997,3]
[323759076,1714251043549,-157.042805,0.00012997,3]
[323759077,1714251043558,-157.042805,0.00012997,3]
[323759078,1714251043566,-157.042805,0.00012997,3]
[323759079,1714251043575,-157.042805,0.00012997,3]
[323759080,1714251043584,-157.042805,0.00012997,3]
[323759081,1714251043593,-157.042805,0.00012997,3]
[323759094,1714251043744,-1000.0,0.00012997,2]
[323759098,1714251043790,-710.33944675,0.00012998,2]
[323759100,1714251043800,-207.90792551,0.00012998,2]
[323759102,1714251043810,-967.84164303,0.00012998,2]
[323759104,1714251043820,-3000.82967405,0.00012998,2]
[323759106,1714251043830,-1351.89634566,0.00012998,2]
[323759108,1714251043839,-533.7586398,0.00012998,2]
[323759110,1714251043848,-155.0,0.00012998,2]
[323759112,1714251043857,-1657.57987822,0.00012998,2]
[323759113,1714251043867,-380.65588204,0.00012998,2]
[323759114,1714251043876,-966.94542242,0.00012998,2]
[323759115,1714251043887,-192.47730425,0.00012998,2]
[323759116,1714251043896,-1608.83176517,0.00012998,2]
[323759117,1714251043906,-157.10217726,0.00012998,2]
[323759118,1714251043918,-2179.73737234,0.00012998,2]
[323759119,1714251043927,-155.64996789,0.00012998,2]
[323759120,1714251043937,-343.10485617,0.00012998,2]
[323759121,1714251043947,-155.0,0.00012998,2]
[323759122,1714251043957,-155.0,0.00012998,2]
[323759123,1714251043966,-777.84323707,0.00012998,2]
[323759124,1714251043977,-305.33150416,0.00012998,2]
[323759125,1714251043987,-157.042805,0.00012998,3]
[323759126,1714251043997,-234.85844687,0.00012998,2]
[323759127,1714251044007,-2359.48463868,0.00012998,2]
[323759128,1714251044016,-157.042805,0.00012998,3]
[323759129,1714251044026,-155.0,0.00012998,2]
[323759130,1714251044035,-157.042805,0.00012998,3]
[323759131,1714251044045,-155.0,0.00012998,2]
[323759132,1714251044055,-157.042805,0.00012998,3]
[323759133,1714251044065,-157.042805,0.00012998,3]
[323759134,1714251044074,-157.042805,0.00012998,3]
[323759135,1714251044084,-157.042805,0.00012998,3]
[323759136,1714251044093,-155.0,0.00012998,2]
[323759137,1714251044102,-376.7617514,0.00012998,2]
[323759138,1714251044112,-157.042805,0.00012998,3]
[323759139,1714251044123,-167.36885889,0.00012998,2]
[323759140,1714251044133,-157.042805,0.00012998,3]
[323759141,1714251044142,-255.3668917,0.00012998,2]
[323759142,1714251044151,-206.72764411,0.00012998,2]
[323759143,1714251044160,-369.94061345,0.00012998,2]
[323759144,1714251044170,-5286.99627743,0.00012998,2]
[323759145,1714251044182,-172.34097081,0.00012998,2]
[323759146,1714251044192,-155.0,0.00012998,2]
[323759147,1714251044202,-787.08726309,0.00012998,2]
[323759148,1714251044211,-200.25592652,0.00012998,2]
[323759149,1714251044221,-155.0,0.00012998,2]
[323759150,1714251044232,-6385.82336793,0.00012998,2]
[323759151,1714251044244,-1250.0,0.00012998,2]
[323759152,1714251044256,-400.0,0.00012998,2]
[323759153,1714251044267,-337.65,0.00012998,2]
[323759154,1714251044278,-2221.03993,0.00012998,2]
[323759155,1714251044293,-865.00999,0.00012998,2]
[323759156,1714251044316,-386.36150005,0.00012998,2]
[323759157,1714251044328,-443.51175,0.00012998,2]
[323759158,1714251044340,-11057.85026227,0.00012998,2]
[323759159,1714251044349,-311.15002604,0.00012998,2]
[323759160,1714251044359,-313.70598498,0.00012998,2]
[323759161,1714251044368,-155.0,0.00012998,2]
[323759162,1714251044378,-23489.73704078,0.00012998,2]
[323759163,1714251044387,-155.19030551,0.00012998,2]
[323759164,1714251044396,-155.19591935,0.00012998,2]
[323759165,1714251044405,-155.24187502,0.00012998,2]
[323759166,1714251044414,-378.94447879,0.00012998,2]
[323759167,1714251044423,-441.35201326,0.00012998,2]
[323759168,1714251044433,-161.47811392,0.00012998,2]
[323759169,1714251044442,-236.51554677,0.00012998,2]
[323759170,1714251044452,-155.18808327,0.00012998,2]
[323759171,1714251044462,-487.22450388,0.00012998,2]
[323759172,1714251044472,-210.55984644,0.00012998,2]
[323759173,1714251044482,-1776.2800756,0.00012998,2]
[323759174,1714251044491,-4409.42137827,0.00012998,2]
[323759175,1714251044500,-155.0,0.00012998,2]
[323759176,1714251044510,-362.51852426,0.00012998,2]
[323759177,1714251044522,-155.0,0.00012998,2]
[323759178,1714251044531,-173.042805,0.00012998,3]
[323759179,1714251044540,-317.01746459,0.00012998,2]
[323759180,1714251044550,-1132.97605351,0.00012999,2]
[323759181,1714251044559,-207.22680324,0.00012999,2]
[323759182,1714251044569,-4277.78598526,0.00012999,2]
[323759183,1714251044579,-502.0,0.00013,2]
[323759184,1714251044588,-683841.26906816,0.00013,2]
[323759185,1714251044611,-299544.52238227,0.00013,2]
[323759186,1714251044624,-567.31896029,0.00013,2]
[323759187,1714251044635,-2843.4868224,0.00013,2]
[323759188,1714251044720,-1492.0001,0.00013,2]
[323759189,1714251044739,-6700.5,0.00013,2]
[323759195,1714251046100,-527.62,0.00012994,2]
[323759196,1714251046115,-37.25024356,0.00012994,2]
[323759197,1714251046126,-4062.74975644,0.00013,2]
[323759198,1714251046140,-2678.34680619,0.00013,2]
[323759199,1714251046158,-94469.09592944,0.00013,2]
[323759200,1714251046170,-605.50432414,0.00013,2]
[323759201,1714251046183,-994.19092379,0.00013,2]
[323759202,1714251046195,-291.2772942,0.00013,2]
[323759203,1714251046213,-552.94906208,0.00013,2]
[323759204,1714251046227,-310.00217,0.00013,2]
[323759205,1714251046273,-3352.69443134,0.00013,2]
[323759206,1714251046287,-1683.65323641,0.00013,2]
[323759207,1714251046302,-37181.62119711,0.00013,2]
[323759208,1714251046329,-1013.92560801,0.00013,2]
[323759209,1714251046385,-1327.22324665,0.00013,2]
[323759224,1714251512554,184.69,0.0001063,10]
[323759226,1714251850044,1514.69,8.219e-05,2]
[323759227,1714251940378,1472.230329,8.219e-05,2]
[323759228,1714251946252,99643.41433288,8.219e-05,2]
[323759229,1714251954364,1472.230329,8.219e-05,2]
[323759230,1714251970448,1198.34679163,8.219e-05,2]
[323759231,1714252005441,169.29,0.0001063,10]
[323759282,1714252232254,-1995.6221796,8.721e-05,2]
[323759284,1714252232264,-968.0068632,8.721e-05,2]
[323759286,1714252232272,-1786.67955787,8.722e-05,2]
[323759288,1714252232284,-522.13920169,8.722e-05,2]
[323759290,1714252232354,-21571.18124044,8.722e-05,2]
[323759291,1714252232364,-1242.50224029,8.862e-05,2]
[323759292,1714252232373,-1294.55623512,8.862e-05,2]
[323759293,1714252232382,-684.46532829,8.863e-05,2]
[323759294,1714252232391,-155.0,8.864e-05,2]
[323759295,1714252232400,-155.0,8.864e-05,2]
[323759296,1714252232409,-524.19857863,8.865e-05,2]
[323759297,1714252232418,-527.20251454,8.865e-05,2]
[323759298,1714252232427,-363.38739989,8.865e-05,2]
[323759299,1714252232437,-817.84000414,8.866e-05,2]
[323759300,1714252232446,-3957.57,8.868e-05,2]
[323759301,1714252232455,-388.07401994,8.897e-05,2]
[323759302,1714252232464,-318.301119,8.899e-05,2]
[323759303,1714252232473,-150.0,8.9e-05,2]
[323759304,1714252232483,-1721.41557353,8.907e-05,2]
[323759305,1714252232492,-250.0,8.908e-05,2]
[323759306,1714252232502,-4248.42,8.908e-05,2]
[323759307,1714252232511,-943.01,8.989e-05,2]
[323759308,1714252232725,-542.97011062,9.266e-05,2]
[323759309,1714252232735,-154.08,9.276e-05,2]
[323759310,1714252232746,-167.77,9.452e-05,2]
[323759311,1714252232758,-1098.77,9.67e-05,2]
[323759312,1714252232769,-676.23,9.67e-05,2]
[323759313,1714252232779,-240.51,9.67e-05,2]
[323759314,1714252232788,-499.99,9.67e-05,2]
[323759315,1714252232798,-210.0,9.79e-05,2]
[323759316,1714252232808,-500.0,9.89e-05,2]
[323759317,1714252232817,-23424.53923677,9.927e-05,2]
[323759318,1714252232841,-338.36,9.927e-05,2]
[323759319,1714252232864,-263.12609255,9.927e-05,2]
[323759320,1714252232890,-933.49206678,9.927e-05,2]
[323759321,1714252232924,-646.06644,9.927e-05,2]
[323759322,1714252232937,-348.06104,9.927e-05,2]
[323759333,1714252238363,-2350.75626598,8.721e-05,2]
[323759334,1714252238589,-3197.81256051,8.721e-05,2]
[323759335,1714252238599,-21712.54733328,9.927e-05,2]
[323759336,1714252238609,-299.99,9.936e-05,2]
[323759337,1714252238619,-150.99,9.936e-05,2]
[323759338,1714252238630,-3396.5222298,9.937e-05,2]
[323759339,1714252238640,-150.99,9.937e-05,2]
[323759340,1714252238650,-307.0,9.939e-05,2]
[323759341,1714252238660,-26337.18,0.00010059,2]
[323759342,1714252238670,-943.01,0.00010112,2]
[323759343,1714252238679,-545.91901904,0.000104,2]
[323759344,1714252238688,-1514.69,0.00010433,2]
[323759345,1714252238698,-317.01746459,0.00010528,2]
[323759346,1714252238708,-2122.03405786,0.00010528,2]
[323759347,1714252238718,-457.64755568,0.00010529,2]
[323759348,1714252238727,-784611.3111,0.0001053,2]
[323759349,1714252238736,-457.64755568,0.00010615,2]
[323759350,1714252238746,-392.21201561,0.00010629,2]
[323759351,1714252238755,-546.90642476,0.0001063,2]
[323759352,1714252238764,-457.64755568,0.000107,2]
[323759353,1714252238774,-322.22999999,0.00010789,2]
[323759354,1714252238783,-316.65546178,0.00010798,2]
[323759355,1714252238792,-414.41284543,0.00010798,2]
[323759356,1714252238802,-155.14585425,0.00010799,2]
[323759357,1714252238812,-1955.0239,0.000108,2]
[323759358,1714252238820,-40044.6051,0.000108,2]
[323759359,1714252238830,-1000.0,0.000108,2]
[323759360,1714252238840,-81134.9898,0.000108,2]
[323759361,1714252238849,-854.9439,0.000108,2]
[323759362,1714252238858,-6787.6748,0.000108,2]
[323759363,1714252238867,-563.6279,0.000108,2]
[323759364,1714252238877,-245000.0,0.000108,2]
[323759366,1714252238886,-700.0,0.000108,3]
[323759367,1714252238895,-403.171,0.00010877,2]
[323759368,1714252238904,-150.99,0.0001089,2]
[323759369,1714252238914,-1316.84,0.0001089,2]
[323759370,1714252238923,-155.12450973,0.00010898,2]
[323759371,1714252238932,-155.26455307,0.00010898,2]
[323759372,1714252238941,-168.80224381,0.00010898,2]
[323759373,1714252238950,-155.0,0.00010898,2]
[323759374,1714252238959,-786.99155585,0.00010898,2]
[323759375,1714252238969,-155.0,0.00010898,2]
[323759376,1714252238978,-201.36658946,0.00010898,2]
[323759377,1714252238987,-157.0436501,0.00010898,2]
[323759378,1714252238996,-2354.9788646,0.00010898,2]
[323759379,1714252239005,-181.10069364,0.00010898,2]
[323759380,1714252239015,-781.35828446,0.00010898,2]
[323759382,1714252239024,-711.0273802,0.00010898,2]
[323759384,1714252239033,-161.31340791,0.00010898,2]
[323759386,1714252239043,-277.09289079,0.00010898,2]
[323759388,1714252239052,-1513.01279747,0.00010898,2]
[323759389,1714252239061,-490.56341243,0.00010898,2]
[323759390,1714252239070,-304.90902579,0.00010898,2]
[323759392,1714252239079,-175.2754864,0.00010898,2]
[323759394,1714252239093,-444.05092147,0.00010898,2]
[323759396,1714252239103,-14918.40590273,0.00010898,2]
[323759398,1714252239113,-306.95158875,0.00010898,2]
[323759400,1714252239123,-310.0,0.00010898,2]
[323759402,1714252239133,-156.94283025,0.00010898,2]
[323759404,1714252239142,-4513.56562886,0.00010898,2]
[323759405,1714252239151,-359.52096542,0.00010898,2]
[323759406,1714252239161,-161.67278386,0.00010898,2]
[323759407,1714252239171,-157.78253506,0.00010898,2]
[323759408,1714252239181,-190.53254202,0.00010898,2]
[323759409,1714252239189,-300.95792734,0.00010898,2]
[323759410,1714252239198,-309.95428075,0.00010898,2]
[323759411,1714252239209,-212.48106616,0.00010898,2]
[323759412,1714252239218,-178.06469243,0.00010898,2]
[323759413,1714252239228,-185.69743876,0.00010898,2]
[323759414,1714252239238,-155.0,0.00010898,2]
[323759415,1714252239248,-941.19979602,0.00010898,2]
[323759416,1714252239258,-196.89901937,0.00010898,2]
[323759417,1714252239268,-233.63015905,0.00010898,2]
[323759418,1714252239277,-3018.84273905,0.00010898,2]
[323759419,1714252239287,-4728.17005222,0.00010898,2]
[323759420,1714252239296,-346.41830008,0.00010898,2]
[323759421,1714252239307,-205.7728251,0.00010898,2]
[323759422,1714252239318,-1722.95125171,0.00010898,2]
[323759423,1714252239327,-306.85876103,0.00010898,2]
[323759424,1714252239337,-266.1273035,0.00010898,2]
[323759425,1714252239347,-589.62785872,0.00010898,2]
[323759426,1714252239357,-259.32312542,0.00010898,2]
[323759427,1714252239367,-158.49372764,0.00010898,2]
[323759428,1714252239378,-157.37702182,0.00010898,2]
[323759429,1714252239387,-305.60617377,0.00010898,2]
[323759430,1714252239396,-208.58192749,0.00010898,2]
[323759431,1714252239406,-155.80892173,0.00010898,2]
[323759432,1714252239416,-156.22891115,0.00010898,2]
[323759433,1714252239426,-163.88340812,0.00010898,2]
[323759434,1714252239435,-155.25921222,0.00010898,2]
[323759435,1714252239444,-216.84655625,0.00010898,2]
[323759436,1714252239454,-308.58842841,0.00010898,2]
[323759437,1714252239462,-305.47432741,0.00010898,2]
[323759438,1714252239472,-160.64973827,0.00010898,2]
[323759439,1714252239482,-207.21030234,0.00010898,2]
[323759440,1714252239491,-157.13236333,0.00010898,2]
[323759441,1714252239502,-157.80727717,0.00010898,2]
[323759442,1714252239513,-213.63615775,0.00010898,2]
[323759443,1714252239523,-171.32338476,0.00010898,2]
[323759444,1714252239532,-197.98538599,0.00010898,2]
[323759445,1714252239542,-289.83775221,0.00010898,2]
[323759446,1714252239550,-194.01529019,0.00010898,2]
[323759447,1714252239560,-175.54408362,0.00010898,2]
[323759448,1714252239569,-233.03801742,0.00010898,2]
[323759449,1714252239578,-201.18969514,0.00010898,2]
[323759450,1714252239587,-155.0,0.00010898,2]
[323759451,1714252239597,-215.79675141,0.00010898,2]
[323759452,1714252239606,-1585.03652121,0.00010898,2]
[323759453,1714252239617,-211.84497049,0.00010898,2]
[323759454,1714252239629,-155.0,0.00010898,2]
[323759455,1714252239639,-211.35577984,0.00010898,2]
[323759456,1714252239649,-172.39956377,0.00010898,2]
[323759457,1714252239660,-155.64569311,0.00010898,2]
[323759458,1714252239670,-194.90310928,0.00010898,2]
[323759459,1714252239679,-200.73168294,0.00010898,2]
[323759460,1714252239688,-155.0,0.00010898,2]
[323759461,1714252239697,-262.16181551,0.00010898,2]
[323759462,1714252239707,-277.78803159,0.00010898,2]
[323759463,1714252239717,-204.20368535,0.00010898,2]
[323759464,1714252239727,-274.54849044,0.00010898,2]
[323759465,1714252239736,-245.93838271,0.00010898,2]
[323759466,1714252239745,-199.11935013,0.00010898,2]
[323759467,1714252239755,-214.00741216,0.00010898,2]
[323759468,1714252239764,-185.77597674,0.00010898,2]
[323759469,1714252239774,-155.11864282,0.00010899,2]
[323759470,1714252239783,-161.71453596,0.00010899,2]
[323759471,1714252239793,-155.79455094,0.00010899,2]
[323759472,1714252239802,-313.40476678,0.00010899,2]
[323759473,1714252239813,-31706.78754861,0.00010899,2]
[323759474,1714252239823,-155.0,0.000109,2]
[323759475,1714252239833,-70944.1694,0.000109,2]
[323759476,1714252239843,-94077.0771,0.000109,2]
[323759477,1714252239852,-4457.634,0.000109,2]
[323759478,1714252239861,-1500.0,0.000109,3]
[323759479,1714252239871,-500.0,0.00010958,2]
[323759480,1714252239880,-635.11,0.00010958,2]
[323759481,1714252239890,-2000.0,0.00010959,3]
[323759482,1714252239899,-152.49621,0.00010959,2]
[323759483,1714252239909,-151.0,0.00010959,2]
[323759484,1714252239918,-151.0,0.00010959,2]
[323759485,1714252239927,-151.0,0.00010959,2]
[323759486,1714252239936,-151.0,0.00010959,2]
[323759487,1714252239945,-8000.0,0.00011,2]
[323759488,1714252239955,-7175.11775745,0.00011,2]
[323759489,1714252239964,-2750.0,0.00011,3]
[323759490,1714252239973,-5276.39130761,0.00011,2]
[323759491,1714252239983,-339.89896657,0.00011,2]
[323759492,1714252239992,-943.01,0.00011236,2]
[323759493,1714252240001,-521.0,0.00011306,2]
[323759494,1714252240011,-519.91916152,0.00011537,2]
[323759495,1714252240020,-3957.57,0.00011608,2]
[323759496,1714252240029,-1500.0,0.00011624,2]
[323759497,1714252240039,-2290.0,0.00011818,2]
[323759498,1714252240048,-1055.0,0.00011818,2]
[323759499,1714252240057,-2300.0,0.000119,4]
[323759500,1714252240066,-86790.66242112,0.00011999,2]
[323759501,1714252240076,-151.0,0.00011999,2]
[323759502,1714252240086,-151.0,0.00011999,2]
[323759503,1714252240097,-151.0,0.00011999,2]
[323759504,1714252240106,-10559.89132622,0.00012,2]
[323759505,1714252240116,-462.0,0.00012147,2]
[323759506,1714252240127,-2296.0,0.00012147,2]
[323759507,1714252240136,-1394.0,0.00012147,2]
[323759508,1714252240145,-970.0,0.00012147,2]
[323759509,1714252240154,-1256.0,0.00012147,2]
[323759510,1714252240163,-1227.0,0.00012147,2]
[323759511,1714252240175,-610.0,0.00012147,2]
[323759512,1714252240184,-432.467,0.00012147,2]
[323759513,1714252240193,-807.0,0.00012147,2]
[323759514,1714252240202,-208.0,0.00012147,2]
[323759515,1714252240211,-1860.0,0.00012147,2]
[323759516,1714252240220,-310.034,0.00012147,2]
[323759517,1714252240229,-443.0,0.00012147,2]
[323759518,1714252240238,-214.0,0.00012147,2]
[323759519,1714252240247,-2856.25610264,0.00012348,2]
[323759520,1714252240257,-943.01,0.0001236,2]
[323759521,1714252240266,-3000.0,0.000125,4]
[323759522,1714252240274,-3800.0,0.000126,4]
[323759524,1714252240283,-1514.69,0.00012648,2]
[323759526,1714252240293,-2000.0,0.000127,2]
[323759527,1714252240302,-700.0,0.000127,4]
[323759528,1714252240312,-909.24844398,0.0001274,2]
[323759529,1714252240321,-151.0,0.0001277,2]
[323759530,1714252240330,-151.0,0.0001277,2]
[323759531,1714252240340,-155.75671,0.0001277,2]
[323759532,1714252240349,-151.0,0.0001277,2]
[323759533,1714252240358,-151.0,0.0001277,2]
[323759534,1714252240367,-229.39119,0.0001277,2]
[323759535,1714252240377,-153.854454,0.0001277,2]
[323759536,1714252240386,-151.0,0.0001277,2]
[323759537,1714252240395,-151.0,0.0001277,2]
[323759538,1714252240404,-151.0,0.0001277,2]
[323759539,1714252240413,-552.796031,0.0001277,2]
[323759540,1714252240422,-552.796031,0.0001277,2]
[323759541,1714252240432,-151.0,0.0001277,2]
[323759542,1714252240441,-151.0,0.0001277,2]
[323759543,1714252240451,-151.0,0.0001277,2]
[323759544,1714252240460,-151.0,0.0001277,2]
[323759545,1714252240469,-151.0,0.0001277,2]
[323759546,1714252240478,-151.0,0.0001277,2]
[323759547,1714252240488,-223.094322,0.0001277,2]
[323759548,1714252240496,-166.001491,0.0001277,2]
[323759549,1714252240505,-166.001491,0.0001277,2]
[323759550,1714252240514,-151.0,0.0001277,2]
[323759551,1714252240523,-151.0,0.0001277,2]
[323759552,1714252240532,-10463.9914,0.0001277,2]
[323759553,1714252240541,-26333.7517,0.0001277,2]
[323759554,1714252240550,-4417.4105,0.0001277,2]
[323759555,1714252240559,-12616.9131787,0.000128,2]
[323759556,1714252240568,-700.0,0.000128,4]
[323759557,1714252240578,-172.68675683,0.00012869,2]
[323759558,1714252240587,-3000.0,0.0001287,2]
[323759559,1714252240596,-339.89896657,0.0001289,2]
[323759560,1714252240605,-1000.0,0.00012896,2]
[323759561,1714252240614,-500.0,0.00012896,2]
[323759562,1714252240624,-10000.0,0.000129,2]
[323759563,1714252240633,-1000.0,0.000129,2]
[323759564,1714252240641,-869.69313,0.000129,2]
[323759565,1714252240650,-6344.56133148,0.000129,2]
[323759566,1714252240659,-700.0,0.000129,4]
[323759567,1714252240669,-6249.7732377,0.000129,2]
[323759568,1714252240678,-1842.02246669,0.000129,2]
[323759569,1714252240686,-199.99843924,0.000129,2]
[323759570,1714252240695,-12795.91738316,0.000129,2]
[323759571,1714252240705,-347.34,0.00012932,2]
[323759572,1714252240714,-400.0,0.0001297,2]
[323759573,1714252240723,-16760.01633474,0.0001298,2]
[323759574,1714252240732,-170.86,0.00012984,2]
[323759575,1714252240741,-4584.3685979,0.00012986,2]
[323759576,1714252240750,-179531.0,0.00012986,2]
[323759577,1714252240759,-32019.0,0.00012986,2]